[Event "*** Titled Tuesday Blitz"]
[Site "Chess.com"]
[Date "2018.08.07"]
[Round "9"]
[White "NormWeinstein"]
[Black "NemtsevIgor"]
[Result "0-1"]
[WhiteElo "2396"]
[BlackElo "2395"]
[TimeControl "180+2"]
[EndTime "15:08:16 PDT"]
[Termination "NemtsevIgor won on time"]

1. e4 {[%clk 0:02:35.5]} 1... c6 {[%clk 0:02:59.7]} 2. d4 {[%clk 0:02:35.5]}
2... d5 {[%clk 0:03:00.9]} 3. exd5 {[%clk 0:02:36.9]} 3... cxd5 {[%clk 0:03:02]}
4. c4 {[%clk 0:02:38.4]} 4... Nf6 {[%clk 0:03:02.6]} 5. Nc3 {[%clk 0:02:39.7]}
5... e6 {[%clk 0:03:03.4]} 6. Nf3 {[%clk 0:02:41.1]} 6... Be7 {[%clk 0:03:04.3]}
7. a3 {[%clk 0:02:41.1]} 7... O-O {[%clk 0:03:04.3]} 8. c5 {[%clk 0:02:42]} 8...
Ne4 {[%clk 0:03:03.2]} 9. Qc2 {[%clk 0:02:41.1]} 9... f5 {[%clk 0:03:03.3]} 10.
Bf4 {[%clk 0:02:40.7]} 10... Bf6 {[%clk 0:03:01.7]} 11. Be5 {[%clk 0:02:31.3]}
11... Nc6 {[%clk 0:03:01.6]} 12. Bxf6 {[%clk 0:02:30.2]} 12... Qxf6 {[%clk
0:03:01.9]} 13. Rd1 {[%clk 0:02:29.4]} 13... a6 {[%clk 0:02:43.4]} 14. Be2
{[%clk 0:02:18.8]} 14... Bd7 {[%clk 0:02:43.6]} 15. O-O {[%clk 0:02:15.4]} 15...
Be8 {[%clk 0:02:44.7]} 16. Qd3 {[%clk 0:01:49.7]} 16... Bh5 {[%clk 0:02:42.4]}
17. Ne1 {[%clk 0:01:47.5]} 17... Bxe2 {[%clk 0:02:42.5]} 18. Nxe2 {[%clk
0:01:46.2]} 18... Qh6 {[%clk 0:02:25.9]} 19. f3 {[%clk 0:01:40.9]} 19... Nf6
{[%clk 0:02:23.7]} 20. Qd2 {[%clk 0:01:31.2]} 20... g5 {[%clk 0:02:18]} 21. b4
{[%clk 0:01:30.5]} 21... Qg7 {[%clk 0:02:14]} 22. Qe3 {[%clk 0:01:19.2]} 22...
Rae8 {[%clk 0:02:13.4]} 23. Nd3 {[%clk 0:01:18.6]} 23... f4 {[%clk 0:02:10.1]}
24. Qf2 {[%clk 0:01:18.9]} 24... Kh8 {[%clk 0:01:59.6]} 25. Rfe1 {[%clk
0:01:19.4]} 25... Rg8 {[%clk 0:01:59.6]} 26. h3 {[%clk 0:01:17]} 26... h5 {[%clk
0:01:59.6]} 27. Kh1 {[%clk 0:00:59.2]} 27... Nd7 {[%clk 0:01:53.8]} 28. a4
{[%clk 0:00:53.3]} 28... Ne7 {[%clk 0:01:51.5]} 29. b5 {[%clk 0:00:46.5]} 29...
axb5 {[%clk 0:01:51.9]} 30. axb5 {[%clk 0:00:47.4]} 30... Nf5 {[%clk 0:01:53.8]}
31. Ndxf4 {[%clk 0:00:38.3]} 31... gxf4 {[%clk 0:01:51.9]} 32. Nxf4 {[%clk
0:00:39.2]} 32... Qh6 {[%clk 0:01:33.3]} 33. c6 {[%clk 0:00:35.9]} 33... bxc6
{[%clk 0:01:32.3]} 34. bxc6 {[%clk 0:00:36.8]} 34... Qxf4 {[%clk 0:01:22.8]} 35.
cxd7 {[%clk 0:00:36.6]} 35... Re7 {[%clk 0:01:21.5]} 36. Qd2 {[%clk 0:00:18.7]}
36... Qxd2 {[%clk 0:01:14.1]} 37. Rxd2 {[%clk 0:00:19.2]} 37... Rd8 {[%clk
0:01:14.8]} 38. g4 {[%clk 0:00:17.3]} 38... Nh4 {[%clk 0:01:11.6]} 39. Re3
{[%clk 0:00:13.3]} 39... Rdxd7 {[%clk 0:01:10]} 40. Kh2 {[%clk 0:00:12.9]} 40...
Ng6 {[%clk 0:01:09.7]} 41. Kg3 {[%clk 0:00:09.9]} 41... h4+ {[%clk 0:01:10.2]}
42. Kf2 {[%clk 0:00:10.5]} 42... Nf4 {[%clk 0:01:11.2]} 43. Rc2 {[%clk
0:00:09.8]} 43... Rc7 {[%clk 0:01:09.5]} 44. Rec3 {[%clk 0:00:07]} 44... Rxc3
{[%clk 0:01:08.3]} 45. Rxc3 {[%clk 0:00:06.8]} 45... Nxh3+ {[%clk 0:01:09.4]}
46. Ke3 {[%clk 0:00:08.2]} 46... Rf7 {[%clk 0:01:04.9]} 47. Rc8+ {[%clk
0:00:07]} 47... Kg7 {[%clk 0:01:05]} 48. Re8 {[%clk 0:00:07]} 48... Nf4 {[%clk
0:01:03.2]} 49. Kf2 {[%clk 0:00:06.7]} 49... Ra7 {[%clk 0:00:58.1]} 50. Kg1
{[%clk 0:00:04.5]} 50... h3 {[%clk 0:00:58.3]} 51. Kh2 {[%clk 0:00:04.5]} 51...
Ra2+ {[%clk 0:00:57.5]} 52. Kg3 {[%clk 0:00:05]} 52... h2 {[%clk 0:00:58.7]} 53.
Re7+ {[%clk 0:00:03.3]} 53... Kf8 {[%clk 0:00:57.7]} 54. Rh7 {[%clk 0:00:03.9]}
54... Ne2+ {[%clk 0:00:51.5]} 55. Kxh2 {[%clk 0:00:04.3]} 55... Nxd4+ {[%clk
0:00:52.7]} 56. Kg3 {[%clk 0:00:05.7]} 56... Ne2+ {[%clk 0:00:51.5]} 57. Kh4
{[%clk 0:00:06.1]} 57... d4 {[%clk 0:00:52.3]} 58. Kg5 {[%clk 0:00:06.5]} 58...
e5 {[%clk 0:00:46.3]} 59. Kf6 {[%clk 0:00:06.7]} 59... Ra6+ {[%clk 0:00:46.7]}
60. Kxe5 {[%clk 0:00:07.2]} 60... d3 {[%clk 0:00:47.6]} 61. Rd7 {[%clk
0:00:06.3]} 61... Nc1 {[%clk 0:00:43.8]} 62. g5 {[%clk 0:00:06.3]} 62... Ke8
{[%clk 0:00:39.9]} 63. Rd4 {[%clk 0:00:06.2]} 63... Ke7 {[%clk 0:00:37.8]} 64.
f4 {[%clk 0:00:06.7]} 64... Ra5+ {[%clk 0:00:38.9]} 65. Ke4 {[%clk 0:00:07.5]}
65... Ke6 {[%clk 0:00:38.8]} 66. Ke3 {[%clk 0:00:05.4]} 66... Ra2 {[%clk
0:00:34.3]} 67. Rc4 {[%clk 0:00:03.6]} 67... Re2+ {[%clk 0:00:33.9]} 68. Kf3
{[%clk 0:00:03.5]} 68... Re1 {[%clk 0:00:35.1]} 0-1

[Event "*** Titled Tuesday Blitz"]
[Site "Chess.com"]
[Date "2018.08.07"]
[Round "9"]
[White "timator"]
[Black "Arystanner23"]
[Result "0-1"]
[WhiteElo "2370"]
[BlackElo "2565"]
[TimeControl "180+2"]
[EndTime "15:08:27 PDT"]
[Termination "Arystanner23 won by resignation"]

1. Nf3 {[%clk 0:03:01.9]} 1... Nf6 {[%clk 0:03:00.9]} 2. g3 {[%clk 0:02:59.5]}
2... e6 {[%clk 0:03:02.3]} 3. Bg2 {[%clk 0:03:00.1]} 3... d5 {[%clk 0:03:04.2]}
4. O-O {[%clk 0:03:01.1]} 4... Be7 {[%clk 0:03:05.8]} 5. d4 {[%clk 0:02:55.7]}
5... O-O {[%clk 0:03:06.9]} 6. c4 {[%clk 0:02:57]} 6... dxc4 {[%clk 0:03:07.4]}
7. Qc2 {[%clk 0:02:54.5]} 7... a6 {[%clk 0:03:08]} 8. Qxc4 {[%clk 0:02:53.6]}
8... b5 {[%clk 0:03:08.4]} 9. Qc2 {[%clk 0:02:55.2]} 9... Bb7 {[%clk 0:03:09.7]}
10. Bd2 {[%clk 0:02:57.1]} 10... Be4 {[%clk 0:03:08.5]} 11. Qc1 {[%clk
0:02:57.2]} 11... Nbd7 {[%clk 0:03:08.7]} 12. Ba5 {[%clk 0:02:57.3]} 12... Rc8
{[%clk 0:03:02.2]} 13. Nbd2 {[%clk 0:02:58.3]} 13... Bb7 {[%clk 0:03:02.3]} 14.
Qc2 {[%clk 0:02:59.4]} 14... Qe8 {[%clk 0:02:56.2]} 15. Rac1 {[%clk 0:02:59]}
15... c5 {[%clk 0:02:56.4]} 16. dxc5 {[%clk 0:03:00.2]} 16... Nxc5 {[%clk
0:02:56.5]} 17. Qb1 {[%clk 0:03:00.9]} 17... Nce4 {[%clk 0:02:54.4]} 18. Rxc8
{[%clk 0:02:54.4]} 18... Qxc8 {[%clk 0:02:55.3]} 19. Rc1 {[%clk 0:02:55.9]}
19... Qa8 {[%clk 0:02:55.7]} 20. Nf1 {[%clk 0:02:54.3]} 20... Ng4 {[%clk
0:02:42]} 21. Be1 {[%clk 0:02:49.4]} 21... Rc8 {[%clk 0:02:40.3]} 22. h3 {[%clk
0:02:50.1]} 22... Ngf6 {[%clk 0:02:40.1]} 23. Ba5 {[%clk 0:02:51.2]} 23... Rxc1
{[%clk 0:02:36]} 24. Qxc1 {[%clk 0:02:53.1]} 24... Bc5 {[%clk 0:02:33.8]} 25.
Ne3 {[%clk 0:02:48.4]} 25... Qa7 {[%clk 0:02:18.8]} 26. Bd2 {[%clk 0:02:47.9]}
26... Nxd2 {[%clk 0:02:11.1]} 27. Qxd2 {[%clk 0:02:48.3]} 27... h6 {[%clk
0:02:09.1]} 28. Nd1 {[%clk 0:02:44.4]} 28... Ne4 {[%clk 0:02:00.8]} 29. Qd8+
{[%clk 0:02:44.6]} 29... Kh7 {[%clk 0:02:01.6]} 30. e3 {[%clk 0:02:45.8]} 30...
Nf6 {[%clk 0:01:53.9]} 31. Ne5 {[%clk 0:02:43.1]} 31... Bxg2 {[%clk 0:01:52.6]}
32. Kxg2 {[%clk 0:02:45]} 32... Qb7+ {[%clk 0:01:52.2]} 33. Kg1 {[%clk
0:02:46.3]} 33... Be7 {[%clk 0:01:39.3]} 34. Qd3+ {[%clk 0:02:32.1]} 34... Kg8
{[%clk 0:01:40.2]} 35. Nc3 {[%clk 0:02:34]} 35... Qc7 {[%clk 0:01:41.1]} 36. Nf3
{[%clk 0:02:32.2]} 36... b4 {[%clk 0:01:40.8]} 37. Ne2 {[%clk 0:02:33.1]} 37...
a5 {[%clk 0:01:37.1]} 38. Nfd4 {[%clk 0:02:32.9]} 38... Nd5 {[%clk 0:01:33]} 39.
Qc2 {[%clk 0:02:32.9]} 39... Qxc2 {[%clk 0:01:31.7]} 40. Nxc2 {[%clk 0:02:34.8]}
40... Bf6 {[%clk 0:01:32.7]} 41. Ned4 {[%clk 0:02:32.7]} 41... Kf8 {[%clk
0:01:31.4]} 42. Kf1 {[%clk 0:02:33.5]} 42... Ke7 {[%clk 0:01:28.4]} 43. Nc6+
{[%clk 0:02:32.4]} 43... Kd7 {[%clk 0:01:27.5]} 44. N6d4 {[%clk 0:02:22.3]}
44... e5 {[%clk 0:01:24.7]} 45. Nb3 {[%clk 0:02:17.6]} 45... e4 {[%clk
0:01:11.3]} 46. Ncd4 {[%clk 0:02:17.7]} 46... Bxd4 {[%clk 0:00:54.5]} 47. exd4
{[%clk 0:02:16.8]} 47... Kc6 {[%clk 0:00:45.1]} 48. Nxa5+ {[%clk 0:02:15]} 48...
Kb5 {[%clk 0:00:46.5]} 49. Nb7 {[%clk 0:01:53.6]} 49... Kc4 {[%clk 0:00:46.3]}
50. Nd6+ {[%clk 0:01:49.4]} 50... Kxd4 {[%clk 0:00:45.8]} 51. Nxf7 {[%clk
0:01:50.4]} 51... Kd3 {[%clk 0:00:46]} 52. Ne5+ {[%clk 0:01:47]} 52... Kc2
{[%clk 0:00:43.1]} 53. Nc4 {[%clk 0:01:47.9]} 53... Kd3 {[%clk 0:00:40.6]} 54.
Ne3 {[%clk 0:01:38.3]} 54... Nxe3+ {[%clk 0:00:33.9]} 55. fxe3 {[%clk
0:01:39.3]} 55... Kc2 {[%clk 0:00:35.3]} 56. a4 {[%clk 0:01:25.4]} 56... Kxb2
{[%clk 0:00:35.3]} 57. a5 {[%clk 0:01:26.4]} 57... Kc3 {[%clk 0:00:36]} 58. a6
{[%clk 0:01:28.3]} 58... b3 {[%clk 0:00:37.5]} 59. a7 {[%clk 0:01:30.2]} 59...
b2 {[%clk 0:00:38.9]} 60. a8=Q {[%clk 0:01:32.1]} 60... b1=Q+ {[%clk 0:00:40.4]}
61. Kf2 {[%clk 0:01:29.5]} 61... Qc2+ {[%clk 0:00:41.6]} 62. Kf1 {[%clk
0:01:30.8]} 62... Qd1+ {[%clk 0:00:41.7]} 63. Kg2 {[%clk 0:01:27.4]} 63... Qf3+
{[%clk 0:00:40.6]} 64. Kh2 {[%clk 0:01:28.8]} 64... Qf2+ {[%clk 0:00:37.8]} 65.
Kh1 {[%clk 0:01:29.6]} 65... Qxe3 {[%clk 0:00:35.4]} 66. Qa3+ {[%clk 0:01:26]}
66... Kd2 {[%clk 0:00:30.5]} 67. Qb2+ {[%clk 0:01:26.1]} 67... Ke1 {[%clk
0:00:31.6]} 68. Qxg7 {[%clk 0:01:22.4]} 68... Qf3+ {[%clk 0:00:28.5]} 69. Kh2
{[%clk 0:01:23.4]} 69... e3 {[%clk 0:00:28.4]} 70. Qa1+ {[%clk 0:01:15.1]} 70...
Kf2 {[%clk 0:00:27]} 71. Qg1+ {[%clk 0:01:16.1]} 71... Ke2 {[%clk 0:00:27.8]}
72. Qb1 {[%clk 0:01:00.1]} 72... Qf2+ {[%clk 0:00:28]} 73. Kh1 {[%clk
0:01:01.5]} 73... Qf1+ {[%clk 0:00:29.4]} 0-1

[Event "*** Titled Tuesday Blitz"]
[Site "Chess.com"]
[Date "2018.08.07"]
[Round "9"]
[White "Supernotar"]
[Black "PaulfromSPb"]
[Result "1/2-1/2"]
[WhiteElo "2477"]
[BlackElo "2579"]
[TimeControl "180+2"]
[EndTime "15:09:14 PDT"]
[Termination "Game drawn - insufficient material"]

1. d4 {[%clk 0:03:00.7]} 1... Nf6 {[%clk 0:03:00.7]} 2. c4 {[%clk 0:03:01.3]}
2... e6 {[%clk 0:03:01.3]} 3. Nf3 {[%clk 0:03:02.1]} 3... b6 {[%clk 0:03:02.1]}
4. g3 {[%clk 0:03:02.7]} 4... Ba6 {[%clk 0:03:03]} 5. Qa4 {[%clk 0:03:02.4]}
5... c5 {[%clk 0:03:02.2]} 6. Bg2 {[%clk 0:03:02.5]} 6... Bb7 {[%clk 0:03:03.1]}
7. O-O {[%clk 0:03:02.9]} 7... cxd4 {[%clk 0:03:03.1]} 8. Nxd4 {[%clk
0:03:03.8]} 8... Bxg2 {[%clk 0:03:04]} 9. Kxg2 {[%clk 0:03:04.8]} 9... Qc8
{[%clk 0:03:05.2]} 10. Rd1 {[%clk 0:03:04.8]} 10... Nc6 {[%clk 0:03:04.5]} 11.
Nxc6 {[%clk 0:03:05.4]} 11... Qxc6+ {[%clk 0:03:05.4]} 12. Qxc6 {[%clk
0:03:06.5]} 12... dxc6 {[%clk 0:03:07.3]} 13. b3 {[%clk 0:03:06.5]} 13... Rd8
{[%clk 0:03:03.5]} 14. Rxd8+ {[%clk 0:03:05.6]} 14... Kxd8 {[%clk 0:03:03.3]}
15. Bb2 {[%clk 0:03:06.2]} 15... Be7 {[%clk 0:03:03.7]} 16. Nc3 {[%clk
0:03:06.9]} 16... Kc7 {[%clk 0:03:02.3]} 17. Rd1 {[%clk 0:03:07.8]} 17... h5
{[%clk 0:02:55.9]} 18. h3 {[%clk 0:03:02.1]} 18... a6 {[%clk 0:02:55.5]} 19. a4
{[%clk 0:03:02]} 19... Bb4 {[%clk 0:02:40.2]} 20. Kf3 {[%clk 0:03:02.1]} 20...
Re8 {[%clk 0:02:37.6]} 21. Ne4 {[%clk 0:03:00.7]} 21... Nxe4 {[%clk 0:02:34.1]}
22. Kxe4 {[%clk 0:03:01.8]} 22... f6 {[%clk 0:02:34.7]} 23. f4 {[%clk
0:02:53.4]} 23... Bd6 {[%clk 0:02:23.4]} 24. e3 {[%clk 0:02:42.9]} 24... Bc5
{[%clk 0:02:12]} 25. Bd4 {[%clk 0:02:41]} 25... Bxd4 {[%clk 0:02:09.4]} 26. exd4
{[%clk 0:02:36.8]} 26... Kd6 {[%clk 0:02:04.1]} 27. b4 {[%clk 0:02:33.2]} 27...
f5+ {[%clk 0:01:49.1]} 28. Ke3 {[%clk 0:02:30]} 28... b5 {[%clk 0:01:42.2]} 29.
c5+ {[%clk 0:02:21.6]} 29... Kc7 {[%clk 0:01:30.9]} 30. axb5 {[%clk 0:02:17.2]}
30... axb5 {[%clk 0:01:31.1]} 31. Ra1 {[%clk 0:02:17.6]} 31... Kb7 {[%clk
0:01:31.3]} 32. g4 {[%clk 0:02:04]} 32... hxg4 {[%clk 0:01:22.6]} 33. hxg4
{[%clk 0:02:04.7]} 33... fxg4 {[%clk 0:00:55.6]} 34. Rg1 {[%clk 0:02:02.1]}
34... Kc7 {[%clk 0:00:55.4]} 35. Rxg4 {[%clk 0:02:00.5]} 35... Re7 {[%clk
0:00:56.3]} 36. Ke4 {[%clk 0:01:59.3]} 36... Kd7 {[%clk 0:00:54.3]} 37. Rg6
{[%clk 0:01:56.3]} 37... Rf7 {[%clk 0:00:54.2]} 38. Ke5 {[%clk 0:01:56.8]} 38...
Rf5+ {[%clk 0:00:54.9]} 39. Ke4 {[%clk 0:01:57.8]} 39... Rf7 {[%clk 0:00:56]}
40. Rg5 {[%clk 0:01:57.8]} 40... Ke7 {[%clk 0:00:50.7]} 41. Ke5 {[%clk
0:01:57.5]} 41... Kd7 {[%clk 0:00:50.2]} 42. Rh5 {[%clk 0:01:50.2]} 42... Ke7
{[%clk 0:00:49.4]} 43. Rh8 {[%clk 0:01:48.3]} 43... Rf5+ {[%clk 0:00:48.6]} 44.
Ke4 {[%clk 0:01:49.4]} 44... g5 {[%clk 0:00:45.9]} 45. Rh7+ {[%clk 0:01:39.6]}
45... Kd8 {[%clk 0:00:46.2]} 46. fxg5 {[%clk 0:01:37.4]} 46... Rxg5 {[%clk
0:00:46.6]} 47. Rf7 {[%clk 0:01:33.7]} 47... Rh5 {[%clk 0:00:45.8]} 48. Ra7
{[%clk 0:01:33.5]} 48... Rg5 {[%clk 0:00:44.8]} 49. Rf7 {[%clk 0:01:32]} 49...
Rh5 {[%clk 0:00:45.6]} 50. Rg7 {[%clk 0:01:28.5]} 50... Rf5 {[%clk 0:00:44.4]}
51. Rh7 {[%clk 0:01:25.4]} 51... Rg5 {[%clk 0:00:42]} 52. Kf4 {[%clk 0:01:17.8]}
52... Rf5+ {[%clk 0:00:42]} 53. Ke4 {[%clk 0:01:17.3]} 53... Rg5 {[%clk
0:00:42.8]} 54. Rh4 {[%clk 0:01:13.8]} 54... Kd7 {[%clk 0:00:42.3]} 55. Rf4
{[%clk 0:01:11.7]} 55... Rh5 {[%clk 0:00:43]} 56. Rf7+ {[%clk 0:01:08.4]} 56...
Kd8 {[%clk 0:00:43.3]} 57. Rf2 {[%clk 0:01:03.6]} 57... Kd7 {[%clk 0:00:42.3]}
58. Rg2 {[%clk 0:01:02.8]} 58... Kd8 {[%clk 0:00:41.6]} 59. Kf4 {[%clk 0:01:02]}
59... Kd7 {[%clk 0:00:41.3]} 60. Rg7+ {[%clk 0:00:59.8]} 60... Kd8 {[%clk
0:00:42]} 61. Rg5 {[%clk 0:00:54.3]} 61... Rxg5 {[%clk 0:00:32.2]} 62. Kxg5
{[%clk 0:00:55]} 62... Ke7 {[%clk 0:00:33.4]} 63. Kg6 {[%clk 0:00:33.2]} 63...
e5 {[%clk 0:00:22.9]} 64. dxe5 {[%clk 0:00:34.4]} 64... Ke6 {[%clk 0:00:24.8]}
65. Kg7 {[%clk 0:00:35.5]} 65... Kxe5 {[%clk 0:00:25.5]} 66. Kf7 {[%clk
0:00:36.6]} 66... Kd5 {[%clk 0:00:26.6]} 67. Ke7 {[%clk 0:00:37.5]} 67... Kc4
{[%clk 0:00:28.5]} 68. Kd6 {[%clk 0:00:38.5]} 68... Kxb4 {[%clk 0:00:26.1]} 69.
Kxc6 {[%clk 0:00:39.8]} 69... Ka4 {[%clk 0:00:27.2]} 70. Kd5 {[%clk 0:00:35.7]}
70... b4 {[%clk 0:00:27.7]} 71. c6 {[%clk 0:00:23.6]} 71... b3 {[%clk
0:00:28.6]} 72. c7 {[%clk 0:00:24.4]} 72... b2 {[%clk 0:00:29.8]} 73. c8=Q
{[%clk 0:00:25.8]} 73... b1=Q {[%clk 0:00:30.8]} 74. Qa6+ {[%clk 0:00:23]} 74...
Kb3 {[%clk 0:00:31.8]} 75. Qb5+ {[%clk 0:00:21.7]} 75... Kc2 {[%clk 0:00:32.2]}
76. Qe2+ {[%clk 0:00:20.8]} 76... Kb3 {[%clk 0:00:32]} 77. Qf3+ {[%clk
0:00:19.6]} 77... Kb2 {[%clk 0:00:32.7]} 78. Kc4 {[%clk 0:00:17.5]} 78... Qa2+
{[%clk 0:00:32.4]} 79. Kb4 {[%clk 0:00:17.8]} 79... Ka1 {[%clk 0:00:31.9]} 80.
Qd1+ {[%clk 0:00:13.2]} 80... Qb1+ {[%clk 0:00:32.4]} 81. Qxb1+ {[%clk
0:00:14.1]} 81... Kxb1 {[%clk 0:00:33]} 1/2-1/2

[Event "*** Titled Tuesday Blitz"]
[Site "Chess.com"]
[Date "2018.08.07"]
[Round "9"]
[White "nihalsarin"]
[Black "Raja3401"]
[Result "1-0"]
[WhiteElo "2762"]
[BlackElo "2629"]
[TimeControl "180+2"]
[EndTime "15:09:27 PDT"]
[Termination "nihalsarin won by resignation"]

1. e4 {[%clk 0:03:01.9]} 1... c5 {[%clk 0:02:59.1]} 2. c3 {[%clk 0:03:02.4]}
2... Nf6 {[%clk 0:02:55.4]} 3. e5 {[%clk 0:03:03.8]} 3... Nd5 {[%clk 0:02:54.4]}
4. d4 {[%clk 0:03:05.3]} 4... cxd4 {[%clk 0:02:55]} 5. Nf3 {[%clk 0:03:04]} 5...
Nc6 {[%clk 0:02:55.3]} 6. cxd4 {[%clk 0:03:04.3]} 6... d6 {[%clk 0:02:56.1]} 7.
Bc4 {[%clk 0:03:05.1]} 7... dxe5 {[%clk 0:02:57.3]} 8. dxe5 {[%clk 0:03:04.2]}
8... Ndb4 {[%clk 0:02:58.4]} 9. Qe2 {[%clk 0:02:58.3]} 9... Bf5 {[%clk
0:02:47.9]} 10. O-O {[%clk 0:02:50.1]} 10... Bd3 {[%clk 0:02:39.3]} 11. Bxd3
{[%clk 0:02:49.6]} 11... Qxd3 {[%clk 0:02:41.2]} 12. Qxd3 {[%clk 0:02:47.9]}
12... Nxd3 {[%clk 0:02:43.1]} 13. e6 {[%clk 0:02:49.8]} 13... fxe6 {[%clk
0:02:41.9]} 14. Nc3 {[%clk 0:02:49.9]} 14... g6 {[%clk 0:02:22.9]} 15. Rd1
{[%clk 0:02:49.1]} 15... O-O-O {[%clk 0:02:21.8]} 16. Ng5 {[%clk 0:02:46.7]}
16... Bh6 {[%clk 0:01:29.2]} 17. Nf7 {[%clk 0:02:28.3]} 17... Bxc1 {[%clk
0:01:28.4]} 18. Raxc1 {[%clk 0:02:24]} 18... Nxc1 {[%clk 0:01:19.4]} 19. Rxc1
{[%clk 0:02:25.9]} 19... Rhf8 {[%clk 0:01:14]} 20. Nxd8 {[%clk 0:02:25.5]} 20...
Rxd8 {[%clk 0:01:15.9]} 21. Ne4 {[%clk 0:02:24.7]} 21... Rd5 {[%clk 0:01:07.3]}
22. f3 {[%clk 0:02:24.9]} 22... Kc7 {[%clk 0:01:04.8]} 23. Kf2 {[%clk
0:02:25.2]} 23... b6 {[%clk 0:01:01.9]} 24. Ke3 {[%clk 0:02:25.2]} 24... Kd7
{[%clk 0:00:57.2]} 25. Nc3 {[%clk 0:02:18.4]} 25... Re5+ {[%clk 0:00:57.5]} 26.
Kf2 {[%clk 0:02:19]} 26... a5 {[%clk 0:00:51.7]} 27. Rd1+ {[%clk 0:02:19.7]}
27... Kc7 {[%clk 0:00:52.7]} 28. a4 {[%clk 0:02:20.6]} 28... Nb4 {[%clk
0:00:49.6]} 29. Nb5+ {[%clk 0:02:19.7]} 29... Kc6 {[%clk 0:00:50.9]} 30. Rd8
{[%clk 0:02:04.5]} 30... Rd5 {[%clk 0:00:46.8]} 31. Rc8+ {[%clk 0:02:02.3]}
31... Kd7 {[%clk 0:00:47.5]} 32. Rc7+ {[%clk 0:02:03.1]} 32... Kd8 {[%clk
0:00:46.3]} 33. Rb7 {[%clk 0:02:04]} 33... Rd2+ {[%clk 0:00:45.3]} 34. Kg3
{[%clk 0:02:04.7]} 34... Rxb2 {[%clk 0:00:46]} 35. Rxb6 {[%clk 0:02:05.2]} 35...
Ra2 {[%clk 0:00:45.2]} 36. Nc3 {[%clk 0:01:47.9]} 36... Ra3 {[%clk 0:00:45.5]}
37. Ne4 {[%clk 0:01:49.3]} 37... Rxa4 {[%clk 0:00:40.4]} 38. Nc5 {[%clk
0:01:50.2]} 38... Ra2 {[%clk 0:00:41.3]} 39. Nxe6+ {[%clk 0:01:49.4]} 39... Kd7
{[%clk 0:00:41.6]} 40. Nf8+ {[%clk 0:01:49.9]} 40... Kc7 {[%clk 0:00:42.7]} 41.
Re6 {[%clk 0:01:51.3]} 41... Kd8 {[%clk 0:00:31.1]} 42. Nxh7 {[%clk 0:01:51.3]}
42... a4 {[%clk 0:00:32.1]} 43. Rxg6 {[%clk 0:01:47.1]} 43... a3 {[%clk
0:00:27.6]} 44. Rg8+ {[%clk 0:01:48.6]} 44... Kc7 {[%clk 0:00:29.1]} 45. Ra8
{[%clk 0:01:50.1]} 45... Kb6 {[%clk 0:00:29.1]} 46. Ng5 {[%clk 0:01:48.8]} 46...
Na6 {[%clk 0:00:28.7]} 47. Ne4 {[%clk 0:01:43.3]} 47... Rc2 {[%clk 0:00:29.3]}
48. Rd8 {[%clk 0:01:38.6]} 48... a2 {[%clk 0:00:30.2]} 49. Rd1 {[%clk 0:01:40]}
49... Nb4 {[%clk 0:00:31.5]} 50. Ra1 {[%clk 0:01:39.4]} 50... Kb5 {[%clk
0:00:23.8]} 51. h4 {[%clk 0:01:39.3]} 51... Kc4 {[%clk 0:00:22.8]} 52. h5 {[%clk
0:01:39.1]} 52... Kb3 {[%clk 0:00:23.2]} 53. Kh3 {[%clk 0:01:23.8]} 53... Nd5
{[%clk 0:00:23.4]} 54. g3 {[%clk 0:01:21]} 54... e5 {[%clk 0:00:20.2]} 55. Kg4
{[%clk 0:01:19.4]} 55... Kb2 {[%clk 0:00:19.1]} 56. Rxa2+ {[%clk 0:01:18.5]}
56... Kxa2 {[%clk 0:00:21]} 57. h6 {[%clk 0:01:17.1]} 57... Rh2 {[%clk
0:00:21.2]} 58. Kg5 {[%clk 0:01:17.5]} 58... Kb3 {[%clk 0:00:19.2]} 59. Kg6
{[%clk 0:01:16.7]} 59... Kc4 {[%clk 0:00:20]} 60. Nd6+ {[%clk 0:01:12.9]} 60...
Kd3 {[%clk 0:00:20.4]} 61. Nf5 {[%clk 0:01:14]} 61... Rh3 {[%clk 0:00:17.2]} 62.
h7 {[%clk 0:01:10.9]} 62... Ke2 {[%clk 0:00:15.7]} 63. Nh4 {[%clk 0:01:08.8]}
63... Rxg3+ {[%clk 0:00:16.9]} 64. Kf7 {[%clk 0:01:08.4]} 64... e4 {[%clk
0:00:17.6]} 65. h8=Q {[%clk 0:01:01.4]} 65... Rxf3+ {[%clk 0:00:19]} 66. Ke6
{[%clk 0:00:48.7]} 66... Nf4+ {[%clk 0:00:20.2]} 67. Ke5 {[%clk 0:00:47]} 67...
e3 {[%clk 0:00:21.1]} 68. Qa8 {[%clk 0:00:43.1]} 68... Rh3 {[%clk 0:00:20.4]}
69. Qa2+ {[%clk 0:00:39.2]} 69... Kd3 {[%clk 0:00:20.8]} 70. Qb3+ {[%clk
0:00:38.4]} 70... Ke2 {[%clk 0:00:21.6]} 71. Qc2+ {[%clk 0:00:38.2]} 71... Kf1
{[%clk 0:00:22.8]} 72. Kxf4 {[%clk 0:00:36.7]} 72... e2 {[%clk 0:00:21]} 73. Ng2
{[%clk 0:00:35.4]} 73... Kf2 {[%clk 0:00:08]} 74. Qd2 {[%clk 0:00:29.8]} 74...
Rf3+ {[%clk 0:00:04.4]} 75. Ke4 {[%clk 0:00:29.2]} 75... Kxg2 {[%clk 0:00:03.5]}
76. Qxe2+ {[%clk 0:00:30.2]} 76... Rf2 {[%clk 0:00:05]} 77. Qg4+ {[%clk
0:00:31.8]} 77... Kf1 {[%clk 0:00:06.4]} 78. Ke3 {[%clk 0:00:32.6]} 78... Ra2
{[%clk 0:00:03.6]} 79. Qd1+ {[%clk 0:00:32.9]} 1-0